[Event "GER-ch Rapid Women 2020"]
[Site "Plochingen"]
[Date "2020.09.19"]
[Round "4.2"]
[White "Stangl, Anita"]
[Black "Papp, Sarah"]
[Result "0-1"]
[ECO "C00"]
[WhiteElo "2005"]
[BlackElo "2327"]
[Annotator "ChessBase"]
[PlyCount "72"]
[EventDate "2020.09.19"]
[EventType "swiss"]
[EventCountry "GER"]
[SourceTitle "playchess.com"]
[Source "ChessBase"]
[SourceQuality "1"]
[TimeControl "900+10"]

1. e4 {[%emt 0:00:00]} e6 {[%emt 0:00:00]} 2. Nf3 {[%emt 0:00:00]} d5 {[%emt 0:00:11]} 3. Nc3 {[%emt 0:00:00]} d4 {[%emt 0:00:25]} 4. Ne2 {[%emt 0:00:00]} c5 {[%emt 0:00:03]} 5. c3 {[%emt 0:00:00]} Nc6 {[%emt 0:01:01]} 6. cxd4 {[%emt 0:00:29]} cxd4 {[%emt 0:00:02]} 7. Qa4 {[%emt 0:00:07]} Bc5 {[%emt 0:00:11]} 8. b4 {[%emt 0:00:47]} Bb6 {[%emt 0:01:48]} 9. b5 {[%emt 0:00:34]} Nce7 {[%emt 0:00:08]} 10. Nexd4 {[%emt 0:00:41]} e5 {[%emt 0:00:53]} 11. Nb3 {[%emt 0:00:23]} Nf6 {[%emt 0:02:04]} 12. Nxe5 {[%emt 0:00:58]} O-O {[%emt 0:00:10]} 13. Bb2 {[%emt 0:00:14]} Ng6 {[%emt 0:01:33]} 14. Nxg6 {[%emt 0:00:23]} hxg6 {[%emt 0:00:02]} 15. Be2 {[%emt 0:01:50]} Re8 {[%emt 0:00:43]} 16. d3 {[%emt 0:00:10]} Ng4 {[%emt 0:01:30]} 17. Bd4 {[%emt 0:04:19]} Be6 {[%emt 0:01:07]} 18. Bxb6 {[%emt 0:01:46]} axb6 {[%emt 0:01:45]} 19. Qb4 {[%emt 0:00:12]} Qh4 {[%emt 0:00:55]} 20. Bxg4 {[%emt 0:00:33]} Bxg4 {[%emt 0:00:05]} 21. h3 {[%emt 0:00:33]} Rad8 {[%emt 0:00:35]} 22. Qc3 {[%emt 0:00:24]} f5 {[%emt 0:00:41]} 23. Nd2 {[%emt 0:00:44]} Re7 {[%emt 0:01:26]} 24. e5 {[%emt 0:00:46]} f4 {[%emt 0:00:21]} 25. Qc4+ {[%emt 0:00:11]} Be6 {[%emt 0:00:13]} 26. Qb4 {[%emt 0:00:02]} Bd5 {[%emt 0:00:34]} 27. O-O {[%emt 0:01:59]} Bxg2 {[%emt 0:00:04]} 28. Kxg2 {[%emt 0:00:22]} f3+ {[%emt 0:00:02]} 29. Nxf3 {[%emt 0:00:09]} Qxb4 {[%emt 0:00:01]} 30. d4 {[%emt 0:00:02]} Qxb5 {[%emt 0:00:15]} 31. Rab1 {[%emt 0:00:01]} Qd5 {[%emt 0:00:03]} 32. Rb3 {[%emt 0:00:15]} Rf8 {[%emt 0:00:03]} 33. Kg3 {[%emt 0:00:02]} Rxf3+ {[%emt 0:00:18]} 34. Rxf3 {[%emt 0:00:03]} Qxd4 {[%emt 0:00:02]} 35. Rc1 {[%emt 0:00:13]} Qxe5+ {[%emt 0:00:03]} 36. Kg2 {[%emt 0:00:00]} Qg5+ {[%emt 0:00:03]} 0-1

[Event "GER-ch Rapid Women 2020"]
[Site "Plochingen"]
[Date "2020.09.19"]
[Round "4.3"]
[White "Frey, Alisa"]
[Black "Osmanodja, Filiz"]
[Result "1-0"]
[ECO "C95"]
[WhiteElo "2087"]
[BlackElo "2256"]
[Annotator "ChessBase"]
[PlyCount "157"]
[EventDate "2020.09.19"]
[EventType "swiss"]
[EventCountry "GER"]
[SourceTitle "playchess.com"]
[Source "ChessBase"]
[SourceQuality "1"]
[TimeControl "900+10"]

1. e4 {[%emt 0:00:00]} e5 {[%emt 0:00:00]} 2. Nf3 {[%emt 0:00:00]} Nc6 {[%emt 0:00:00]} 3. Bb5 {[%emt 0:00:00]} a6 {[%emt 0:00:00]} 4. Ba4 {[%emt 0:00:00]} Nf6 {[%emt 0:00:00]} 5. O-O {[%emt 0:00:00]} b5 {[%emt 0:00:01]} 6. Bb3 {[%emt 0:00:01]} Be7 {[%emt 0:00:02]} 7. Re1 {[%emt 0:00:04]} d6 {[%emt 0:00:03]} 8. c3 {[%emt 0:00:04]} O-O {[%emt 0:00:03]} 9. h3 {[%emt 0:00:05]} Nb8 {[%emt 0:00:19]} 10. d4 {[%emt 0:00:06]} Nbd7 {[%emt 0:00:01]} 11. Nbd2 {[%emt 0:00:07]} Bb7 {[%emt 0:00:01]} 12. a4 {[%emt 0:00:49]} c5 {[%emt 0:00:15]} 13. d5 {[%emt 0:00:16]} c4 {[%emt 0:00:23]} 14. Bc2 {[%emt 0:00:05]} Nc5 {[%emt 0:00:02]} 15. Nf1 {[%emt 0:00:17]} Nfd7 {[%emt 0:00:06]} 16. Ng3 {[%emt 0:00:12]} g6 {[%emt 0:00:05]} 17. Bh6 {[%emt 0:00:43]} Re8 {[%emt 0:00:01]} 18. Nh2 {[%emt 0:00:23]} Bg5 {[%emt 0:04:52]} 19. Bxg5 {[%emt 0:00:21]} Qxg5 {[%emt 0:00:02]} 20. Qg4 {[%emt 0:00:32]} Qxg4 {[%emt 0:01:06]} 21. Nxg4 {[%emt 0:00:02]} h5 {[%emt 0:00:02]} 22. Ne3 {[%emt 0:00:45]} h4 {[%emt 0:00:10]} 23. Ne2 {[%emt 0:01:00]} Nd3 {[%emt 0:01:09]} 24. Reb1 {[%emt 0:00:02]} N7c5 {[%emt 0:00:10]} 25. f3 {[%emt 0:01:17]} Rf8 {[%emt 0:01:35]} 26. Nc1 {[%emt 0:02:46]} f5 {[%emt 0:00:39]} 27. b4 {[%emt 0:00:20]} Nxc1 {[%emt 0:04:36]} 28. bxc5 {[%emt 0:00:26]} Ne2+ {[%emt 0:00:13]} 29. Kf2 {[%emt 0:00:13]} Nxc3 {[%emt 0:00:05]} 30. c6 {[%emt 0:00:05]} Bc8 {[%emt 0:00:24]} 31. Rb2 {[%emt 0:01:48]} Nxa4 {[%emt 0:02:07]} 32. Bxa4 {[%emt 0:00:31]} c3 {[%emt 0:00:02]} 33. Rb3 {[%emt 0:01:24]} bxa4 {[%emt 0:00:07]} 34. Rxa4 {[%emt 0:00:03]} fxe4 {[%emt 0:00:21]} 35. Rxe4 {[%emt 0:00:22]} Bf5 {[%emt 0:01:15]} 36. Nxf5 {[%emt 0:00:09]} gxf5 {[%emt 0:00:08]} 37. Rxh4 {[%emt 0:00:15]} Kg7 {[%emt 0:00:28]} 38. Rc4 {[%emt 0:01:27]} a5 {[%emt 0:00:06]} 39. Rcxc3 {[%emt 0:00:31]} a4 {[%emt 0:00:07]} 40. Rb7+ {[%emt 0:00:01]} Kf6 {[%emt 0:00:22]} 41. Ra3 {[%emt 0:00:05]} Rfd8 {[%emt 0:00:03]} 42. Ke3 {[%emt 0:01:04]} Ra5 {[%emt 0:00:02]} 43. g4 {[%emt 0:00:49]} Rxd5 {[%emt 0:00:13]} 44. Rxa4 {[%emt 0:00:20]} f4+ {[%emt 0:00:10]} 45. Ke2 {[%emt 0:00:31]} Rc5 {[%emt 0:00:12]} 46. Ra6 {[%emt 0:01:00]} Rc8 {[%emt 0:00:12]} 47. Rbb6 {[%emt 0:01:02]} Rc7 {[%emt 0:00:10]} 48. h4 {[%emt 0:00:07]} d5 {[%emt 0:00:08]} 49. Kd3 {[%emt 0:00:15]} Rc1 {[%emt 0:00:14]} 50. Kd2 {[%emt 0:00:08]} Rc5 {[%emt 0:00:11]} 51. Kd3 {[%emt 0:00:01]} Rc1 {[%emt 0:00:01]} 52. Kd2 {[%emt 0:00:00]} Rc4 {[%emt 0:00:01]} 53. Kd3 {[%emt 0:00:05]} Rd4+ {[%emt 0:00:02]} 54. Ke2 {[%emt 0:00:08]} e4 {[%emt 0:00:06]} 55. fxe4 {[%emt 0:00:10]} dxe4 {[%emt 0:00:37]} 56. Rb7 {[%emt 0:00:03]} f3+ {[%emt 0:00:09]} 57. Ke3 {[%emt 0:00:27]} Rd3+ {[%emt 0:00:17]} 58. Kxe4 {[%emt 0:00:02]} f2 {[%emt 0:00:02]} 59. Ra1 {[%emt 0:00:04]} Rxb7 {[%emt 0:00:18]} 60. Kxd3 {[%emt 0:00:08]} Rb3+ {[%emt 0:00:11]} 61. Kc4 {[%emt 0:00:11]} Rb2 {[%emt 0:00:11]} 62. Kc5 {[%emt 0:00:11]} Ke6 {[%emt 0:00:08]} 63. h5 {[%emt 0:00:09]} Rc2+ {[%emt 0:00:05]} 64. Kb6 {[%emt 0:00:03]} Ra2 {[%emt 0:00:16]} 65. Rc1 {[%emt 0:00:16]} Kd6 {[%emt 0:00:08]} 66. Rd1+ {[%emt 0:00:03]} Ke7 {[%emt 0:00:03]} 67. c7 {[%emt 0:00:12]} Rb2+ {[%emt 0:00:02]} 68. Kc6 {[%emt 0:00:05]} Rc2+ {[%emt 0:00:11]} 69. Kb7 {[%emt 0:00:02]} Rb2+ {[%emt 0:00:12]} 70. Kc8 {[%emt 0:00:02]} Rb4 {[%emt 0:00:23]} 71. g5 {[%emt 0:00:07]} Rb5 {[%emt 0:00:05]} 72. g6 {[%emt 0:00:09]} Rxh5 {[%emt 0:00:05]} 73. Rf1 {[%emt 0:00:04]} Rf5 {[%emt 0:00:21]} 74. g7 {[%emt 0:00:05]} Kf7 {[%emt 0:00:07]} 75. Kb7 {[%emt 0:00:08]} Rb5+ {[%emt 0:00:09]} 76. Kc6 {[%emt 0:00:02]} Rb2 {[%emt 0:00:14]} 77. c8=Q {[%emt 0:00:05]} Rc2+ {[%emt 0:00:02]} 78. Kb7 {[%emt 0:00:01]} Rb2+ {[%emt 0:00:07]} 79. Ka6 {[%emt 0:00:03]} 1-0

[Event "GER-ch Rapid Women 2020"]
[Site "Plochingen"]
[Date "2020.09.19"]
[Round "4.4"]
[White "Mader, Lena"]
[Black "Gheng, Simona"]
[Result "0-1"]
[ECO "E14"]
[WhiteElo "1839"]
[BlackElo "2014"]
[Annotator "ChessBase"]
[PlyCount "66"]
[EventDate "2020.09.19"]
[EventType "swiss"]
[EventCountry "GER"]
[SourceTitle "playchess.com"]
[Source "ChessBase"]
[SourceQuality "1"]
[TimeControl "900+10"]

1. c4 {[%emt 0:00:00]} e6 {[%emt 0:00:00]} 2. Nc3 {[%emt 0:00:37]} d5 {[%emt 0:00:00]} 3. e3 {[%emt 0:00:07]} Nf6 {[%emt 0:00:00]} 4. Nf3 {[%emt 0:00:02]} Be7 {[%emt 0:00:10]} 5. b3 {[%emt 0:00:05]} O-O {[%emt 0:00:03]} 6. Be2 {[%emt 0:00:05]} c5 {[%emt 0:00:04]} 7. cxd5 {[%emt 0:00:15]} exd5 {[%emt 0:00:02]} 8. d4 {[%emt 0:00:09]} b6 {[%emt 0:00:02]} 9. O-O {[%emt 0:00:06]} Bb7 {[%emt 0:00:01]} 10. Bb2 {[%emt 0:00:16]} Nbd7 {[%emt 0:00:27]} 11. dxc5 {[%emt 0:00:56]} bxc5 {[%emt 0:00:02]} 12. Rc1 {[%emt 0:00:15]} Rc8 {[%emt 0:00:01]} 13. h3 {[%emt 0:00:43]} Nb6 {[%emt 0:00:38]} 14. Nh2 {[%emt 0:00:44]} d4 {[%emt 0:01:15]} 15. exd4 {[%emt 0:00:23]} cxd4 {[%emt 0:00:01]} 16. Nb5 {[%emt 0:00:13]} Rxc1 {[%emt 0:00:10]} 17. Bxc1 {[%emt 0:00:46]} Qd5 {[%emt 0:00:10]} 18. Bf3 {[%emt 0:00:23]} Qxb5 {[%emt 0:00:02]} 19. Bxb7 {[%emt 0:00:03]} Rd8 {[%emt 0:00:11]} 20. Bf3 {[%emt 0:00:29]} d3 {[%emt 0:00:19]} 21. Ng4 {[%emt 0:00:59]} Nxg4 {[%emt 0:01:12]} 22. Bxg4 {[%emt 0:00:04]} Nd5 {[%emt 0:00:16]} 23. a4 {[%emt 0:02:53]} Qa6 {[%emt 0:00:18]} 24. Bd2 {[%emt 0:00:27]} Bb4 {[%emt 0:00:23]} 25. Re1 {[%emt 0:00:49]} g6 {[%emt 0:01:12]} 26. Bf3 {[%emt 0:00:53]} Nc3 {[%emt 0:00:38]} 27. Bxc3 {[%emt 0:00:28]} Bxc3 {[%emt 0:00:01]} 28. Re3 {[%emt 0:00:13]} Bd4 {[%emt 0:00:12]} 29. Re7 {[%emt 0:00:35]} Qb6 {[%emt 0:00:50]} 30. Kh1 {[%emt 0:04:24]} Bxf2 {[%emt 0:00:17]} 31. Rb7 {[%emt 0:00:09]} Qe3 {[%emt 0:00:14]} 32. Qa1 {[%emt 0:00:36]} d2 {[%emt 0:00:13]} 33. Rc7 {[%emt 0:00:27]} Qe1+ {[%emt 0:00:05]} 0-1

[Event "GER-ch Rapid Women 2020"]
[Site "Plochingen"]
[Date "2020.09.19"]
[Round "4.5"]
[White "Zeller, Elisa"]
[Black "Mundt, Alexandra"]
[Result "1-0"]
[ECO "B06"]
[WhiteElo "1969"]
[BlackElo "1786"]
[Annotator "ChessBase"]
[PlyCount "46"]
[EventDate "2020.09.19"]
[EventType "swiss"]
[EventCountry "GER"]
[SourceTitle "playchess.com"]
[Source "ChessBase"]
[SourceQuality "1"]
[TimeControl "900+10"]

1. e4 {[%emt 0:00:00]} g6 {[%emt 0:00:00]} 2. d4 {[%emt 0:00:00]} Bg7 {[%emt 0:00:00]} 3. Nf3 {[%emt 0:00:00]} e6 {[%emt 0:00:00]} 4. Be2 {[%emt 0:00:07]} Ne7 {[%emt 0:00:02]} 5. O-O {[%emt 0:00:10]} O-O {[%emt 0:00:38]} 6. Nc3 {[%emt 0:00:13]} d5 {[%emt 0:00:15]} 7. e5 {[%emt 0:00:58]} Nf5 {[%emt 0:02:05]} 8. Bg5 {[%emt 0:01:17]} Qd7 {[%emt 0:00:32]} 9. Qd2 {[%emt 0:02:08]} Nc6 {[%emt 0:01:56]} 10. Bb5 {[%emt 0:02:47]} a6 {[%emt 0:00:03]} 11. Bxc6 {[%emt 0:00:02]} Qxc6 {[%emt 0:00:03]} 12. g4 {[%emt 0:00:04]} h6 {[%emt 0:05:51]} 13. gxf5 {[%emt 0:02:52]} hxg5 {[%emt 0:00:03]} 14. f6 {[%emt 0:00:02]} Bxf6 {[%emt 0:02:45]} 15. exf6 {[%emt 0:00:03]} e5 {[%emt 0:00:36]} 16. dxe5 {[%emt 0:00:03]} Qe6 {[%emt 0:00:53]} 17. Qxg5 {[%emt 0:00:44]} c6 {[%emt 0:01:50]} 18. Nd4 {[%emt 0:01:45]} Qh3 {[%emt 0:00:01]} 19. Nce2 {[%emt 0:01:06]} c5 {[%emt 0:00:23]} 20. Nf4 {[%emt 0:00:07]} Qh7 {[%emt 0:00:10]} 21. Nb3 {[%emt 0:00:19]} c4 {[%emt 0:00:10]} 22. Nd4 {[%emt 0:00:14]} Bh3 {[%emt 0:00:10]} 23. Rfe1 {[%emt 0:00:22]} Rfe8 {[%emt 0:00:32]} 1-0

[Event "GER-ch Rapid Women 2020"]
[Site "Plochingen"]
[Date "2020.09.19"]
[Round "4.6"]
[White "Voicu-Jagodzinsky, Carmen"]
[Black "Skibbe, Diana"]
[Result "1-0"]
[ECO "C42"]
[WhiteElo "2247"]
[BlackElo "1991"]
[Annotator "ChessBase"]
[PlyCount "21"]
[EventDate "2020.09.19"]
[EventType "swiss"]
[EventCountry "GER"]
[SourceTitle "playchess.com"]
[Source "ChessBase"]
[SourceQuality "1"]
[TimeControl "900+10"]

1. e4 {[%emt 0:00:00]} e5 {[%emt 0:00:00]} 2. Nf3 {[%emt 0:00:00]} Nf6 {[%emt 0:00:00]} 3. Nxe5 {[%emt 0:00:06]} d6 {[%emt 0:00:00]} 4. Nf3 {[%emt 0:00:01]} Nxe4 {[%emt 0:00:00]} 5. Nc3 {[%emt 0:00:01]} d5 {[%emt 0:00:21]} 6. Qe2 {[%emt 0:03:08]} Qe7 {[%emt 0:00:02]} 7. Nxd5 {[%emt 0:00:18]} Qc5 {[%emt 0:00:26]} 8. Qxe4+ {[%emt 0:00:16]} Be6 {[%emt 0:00:02]} 9. Nf4 {[%emt 0:00:39]} Qb6 {[%emt 0:01:02]} 10. Nxe6 {[%emt 0:00:31]} fxe6 {[%emt 0:00:02]} 11. Bc4 {[%emt 0:00:06]} 1-0

[Event "GER-ch Rapid Women 2020"]
[Site "Plochingen"]
[Date "2020.09.19"]
[Round "5.2"]
[White "Muetsch, Annmarie"]
[Black "Frey, Alisa"]
[Result "1-0"]
[ECO "C45"]
[WhiteElo "2226"]
[BlackElo "2087"]
[Annotator "ChessBase"]
[PlyCount "59"]
[EventDate "2020.09.19"]
[EventType "swiss"]
[EventCountry "GER"]
[SourceTitle "playchess.com"]
[Source "ChessBase"]
[SourceQuality "1"]
[TimeControl "900+10"]

1. e4 {[%emt 0:00:00]} e5 {[%emt 0:00:00]} 2. Nf3 {[%emt 0:00:00]} Nc6 {[%emt 0:00:00]} 3. d4 {[%emt 0:00:00]} exd4 {[%emt 0:00:00]} 4. Nxd4 {[%emt 0:00:02]} Bc5 {[%emt 0:00:00]} 5. Nb3 {[%emt 0:00:02]} Bb6 {[%emt 0:00:00]} 6. Nc3 {[%emt 0:00:02]} Nf6 {[%emt 0:00:27]} 7. Qe2 {[%emt 0:00:04]} O-O {[%emt 0:00:25]} 8. Be3 {[%emt 0:00:24]} Bxe3 {[%emt 0:00:30]} 9. Qxe3 {[%emt 0:00:03]} Re8 {[%emt 0:00:35]} 10. O-O-O {[%emt 0:00:07]} Qe7 {[%emt 0:00:20]} 11. f3 {[%emt 0:00:42]} d6 {[%emt 0:00:35]} 12. g4 {[%emt 0:00:50]} a5 {[%emt 0:00:57]} 13. Bb5 {[%emt 0:00:31]} Bd7 {[%emt 0:00:30]} 14. g5 {[%emt 0:00:46]} Nh5 {[%emt 0:00:02]} 15. Nd5 {[%emt 0:00:25]} Qd8 {[%emt 0:00:04]} 16. Kb1 {[%emt 0:00:45]} Nb4 {[%emt 0:00:18]} 17. Nxb4 {[%emt 0:02:55]} Bxb5 {[%emt 0:01:59]} 18. Nd5 {[%emt 0:00:15]} Bc4 {[%emt 0:01:27]} 19. Qc3 {[%emt 0:01:09]} b5 {[%emt 0:01:07]} 20. Nd4 {[%emt 0:01:51]} c5 {[%emt 0:06:14]} 21. Nf5 {[%emt 0:00:41]} Bxd5 {[%emt 0:00:39]} 22. Rxd5 {[%emt 0:00:24]} b4 {[%emt 0:00:14]} 23. Qd2 {[%emt 0:01:28]} c4 {[%emt 0:00:53]} 24. Rxd6 {[%emt 0:00:15]} Qc8 {[%emt 0:00:09]} 25. Qd5 {[%emt 0:01:35]} Nf4 {[%emt 0:00:34]} 26. Qd4 {[%emt 0:00:24]} Nh5 {[%emt 0:00:09]} 27. Rd7 {[%emt 0:00:22]} Ra6 {[%emt 0:00:29]} 28. Ne7+ {[%emt 0:01:38]} Rxe7 {[%emt 0:00:06]} 29. Rxe7 {[%emt 0:00:20]} c3 {[%emt 0:00:25]} 30. Qc4 {[%emt 0:00:32]} 1-0

[Event "GER-ch Rapid Women 2020"]
[Site "Plochingen"]
[Date "2020.09.19"]
[Round "5.3"]
[White "Gheng, Simona"]
[Black "Zeller, Elisa"]
[Result "0-1"]
[ECO "C07"]
[WhiteElo "2014"]
[BlackElo "1969"]
[Annotator "NA"]
[PlyCount "172"]
[EventDate "2020.09.19"]
[EventType "swiss"]
[EventCountry "GER"]
[SourceTitle "playchess.com"]
[Source "ChessBase"]
[SourceQuality "1"]
[TimeControl "900+10"]

1. e4 {[%emt 0:00:00]} e6 {[%emt 0:00:00]} 2. d4 {[%emt 0:00:03]} d5 {[%emt 0:00:00]} 3. Nd2 {[%emt 0:00:00]} c5 {[%emt 0:00:00]} 4. exd5 {[%emt 0:00:00]} Qxd5 {[%emt 0:00:00]} 5. Ngf3 {[%emt 0:00:00]} cxd4 {[%emt 0:00:00]} 6. Bc4 {[%emt 0:00:00]} Qd7 {[%emt 0:00:01]} 7. O-O {[%emt 0:00:00]} Nc6 {[%emt 0:00:01]} 8. Nb3 {[%emt 0:00:02]} Nf6 {[%emt 0:00:02]} 9. Nbxd4 {[%emt 0:00:03]} Nxd4 {[%emt 0:00:03]} 10. Nxd4 {[%emt 0:00:16]} a6 {[%emt 0:00:01]} 11. Re1 {[%emt 0:00:38]} b5 {[%emt 0:01:07]} 12. Bb3 {[%emt 0:01:41]} Bc5 {[%emt 0:00:08]} 13. Be3 {[%emt 0:00:14]} Bxd4 {[%emt 0:00:44]} 14. Bxd4 {[%emt 0:00:03]} O-O {[%emt 0:00:29]} 15. Qf3 {[%emt 0:00:33]} Bb7 {[%emt 0:00:06]} 16. Qf4 {[%emt 0:00:37]} Nd5 {[%emt 0:02:50]} 17. Qe5 {[%emt 0:00:16]} Nf6 {[%emt 0:00:17]} 18. Rad1 {[%emt 0:00:10]} Qc6 {[%emt 0:00:09]} 19. f3 {[%emt 0:00:16]} Rfd8 {[%emt 0:01:25]} 20. c3 {[%emt 0:00:04]} Ne8 {[%emt 0:00:36]} 21. Qh5 {[%emt 0:00:31]} Qc7 {[%emt 0:00:38]} 22. Bc2 {[%emt 0:01:54]} g6 {[%emt 0:01:05]} 23. Qh6 {[%emt 0:00:03]} Bd5 {[%emt 0:00:15]} 24. Re5 {[%emt 0:00:20]} f6 {[%emt 0:00:54]} 25. Rxd5 {[%emt 0:01:35]} exd5 {[%emt 0:00:36]} 26. Re1 {[%emt 0:00:03]} Qg7 {[%emt 0:00:22]} 27. Qf4 {[%emt 0:00:21]} Qf7 {[%emt 0:00:52]} 28. h4 {[%emt 0:00:16]} Nc7 {[%emt 0:00:47]} 29. Bb6 {[%emt 0:02:17]} Ne6 {[%emt 0:00:21]} 30. Qg4 {[%emt 0:00:03]} f5 {[%emt 0:00:51]} 31. Qg3 {[%emt 0:01:39]} Rd7 {[%emt 0:00:07]} 32. Qe5 {[%emt 0:00:28]} Re8 {[%emt 0:00:13]} 33. Rd1 {[%emt 0:01:29]} Nd8 {[%emt 0:02:02]} 34. Qg3 {[%emt 0:00:13]} Nc6 {[%emt 0:00:11]} 35. Bb3 {[%emt 0:00:05]} Ne7 {[%emt 0:00:16]} 36. Bd4 {[%emt 0:00:05]} f4 {[%emt 0:00:18]} 37. Qg5 {[%emt 0:00:05]} Nf5 {[%emt 0:00:04]} 38. Qxf4 {[%emt 0:00:39]} Nxd4 {[%emt 0:00:09]} 39. Qxd4 {[%emt 0:00:01]} Red8 {[%emt 0:00:03]} 40. a4 {[%emt 0:00:01]} bxa4 {[%emt 0:00:14]} 41. Qxa4 {[%emt 0:00:04]} Qf6 {[%emt 0:00:15]} 42. Qa5 {[%emt 0:00:17]} Kg7 {[%emt 0:00:20]} 43. Rd4 {[%emt 0:00:23]} Qf5 {[%emt 0:00:14]} 44. Qa1 {[%emt 0:00:44]} Qe5 {[%emt 0:00:43]} 45. Qxa6 {[%emt 0:00:11]} Qe1+ {[%emt 0:00:30]} 46. Kh2 {[%emt 0:00:14]} Qe5+ {[%emt 0:00:16]} 47. f4 {[%emt 0:00:01]} Qh5 {[%emt 0:00:13]} 48. Kh3 {[%emt 0:00:09]} Re8 {[%emt 0:00:27]} 49. Qc6 {[%emt 0:00:09]} Qf5+ {[%emt 0:00:17]} 50. Kh2 {[%emt 0:00:05]} Red8 {[%emt 0:00:12]} 51. Bd1 {[%emt 0:00:47]} Qf6 {[%emt 0:00:14]} 52. Qxf6+ {[%emt 0:00:04]} Kxf6 {[%emt 0:00:02]} 53. g4 {[%emt 0:00:02]} Rb8 {[%emt 0:00:12]} 54. b4 {[%emt 0:00:04]} Ra8 {[%emt 0:00:25]} 55. Bf3 {[%emt 0:00:14]} Ra3 {[%emt 0:00:14]} 56. g5+ {[%emt 0:00:36]} Kg7 {[%emt 0:00:03]} 57. Bg4 {[%emt 0:00:48]} Re7 {[%emt 0:00:24]} 58. Rxd5 {[%emt 0:00:07]} Rxc3 {[%emt 0:00:02]} 59. b5 {[%emt 0:00:03]} Rc2+ {[%emt 0:00:07]} 60. Kg3 {[%emt 0:00:07]} Re3+ {[%emt 0:00:10]} 61. Bf3 {[%emt 0:00:01]} Rcc3 {[%emt 0:00:01]} 62. Rd7+ {[%emt 0:00:03]} Kf8 {[%emt 0:00:04]} 63. Rxh7 {[%emt 0:00:13]} Rxf3+ {[%emt 0:00:01]} 64. Kg2 {[%emt 0:00:01]} Rfd3 {[%emt 0:00:06]} 65. Kf2 {[%emt 0:00:01]} Rf3+ {[%emt 0:00:03]} 66. Ke2 {[%emt 0:00:00]} Rxf4 {[%emt 0:00:03]} 67. b6 {[%emt 0:00:01]} Rb4 {[%emt 0:00:02]} 68. Kd2 {[%emt 0:00:02]} Rcb3 {[%emt 0:00:06]} 69. h5 {[%emt 0:00:03]} gxh5 {[%emt 0:00:03]} 70. Rxh5 {[%emt 0:00:13]} Rxb6 {[%emt 0:00:01]} 71. Kc2 {[%emt 0:00:02]} Rg3 {[%emt 0:00:04]} 72. Kd2 {[%emt 0:00:02]} Rb2+ {[%emt 0:00:04]} 73. Kc1 {[%emt 0:00:00]} Rf2 {[%emt 0:00:03]} 74. Rh1 {[%emt 0:00:02]} Rxg5 {[%emt 0:00:01]} 75. Rd1 {[%emt 0:00:01]} Rgg2 {[%emt 0:00:05]} 76. Re1 {[%emt 0:00:01]} Re2 {[%emt 0:00:03]} 77. Rf1+ {[%emt 0:00:01]} Ke7 {[%emt 0:00:01]} 78. Rd1 {[%emt 0:00:01]} Ke6 {[%emt 0:00:02]} 79. Kb1 {[%emt 0:00:02]} Ke5 {[%emt 0:00:05]} 80. Ka1 {[%emt 0:00:01]} Ke4 {[%emt 0:00:02]} 81. Kb1 {[%emt 0:00:01]} Rb2+ {[%emt 0:00:01]} 82. Ka1 {[%emt 0:00:00]} Rgd2 {[%emt 0:00:04]} 83. Re1+ {[%emt 0:00:02]} Kd3 {[%emt 0:00:02]} 84. Rh1 {[%emt 0:00:01]} Ra2+ {[%emt 0:00:23]} 85. Kb1 {[%emt 0:00:02]} Rdb2+ {[%emt 0:00:01]} 86. Kc1 {[%emt 0:00:00]} Ra1+ {[%emt 0:00:01]} 0-1

[Event "GER-ch Rapid Women 2020"]
[Site "Plochingen"]
[Date "2020.09.19"]
[Round "5.4"]
[White "Mundt, Alexandra"]
[Black "Voicu-Jagodzinsky, Carmen"]
[Result "0-1"]
[ECO "B34"]
[WhiteElo "1786"]
[BlackElo "2247"]
[Annotator "NA"]
[PlyCount "84"]
[EventDate "2020.09.19"]
[EventType "swiss"]
[EventCountry "GER"]
[SourceTitle "playchess.com"]
[Source "ChessBase"]
[SourceQuality "1"]
[TimeControl "900+10"]

1. e4 {[%emt 0:00:00]} c5 {[%emt 0:00:00]} 2. Nf3 {[%emt 0:00:00]} Nc6 {[%emt 0:00:00]} 3. d4 {[%emt 0:00:00]} cxd4 {[%emt 0:00:00]} 4. Nxd4 {[%emt 0:00:00]} g6 {[%emt 0:00:00]} 5. Nc3 {[%emt 0:01:16]} Bg7 {[%emt 0:00:00]} 6. Be3 {[%emt 0:00:22]} Nf6 {[%emt 0:00:06]} 7. Be2 {[%emt 0:00:31]} O-O {[%emt 0:00:12]} 8. Qd2 {[%emt 0:00:35]} d5 {[%emt 0:00:12]} 9. exd5 {[%emt 0:03:02]} Nxd5 {[%emt 0:00:03]} 10. Nxc6 {[%emt 0:01:49]} bxc6 {[%emt 0:00:04]} 11. Nxd5 {[%emt 0:00:52]} cxd5 {[%emt 0:00:05]} 12. c3 {[%emt 0:01:19]} Bb7 {[%emt 0:01:34]} 13. Bd4 {[%emt 0:00:54]} e5 {[%emt 0:00:14]} 14. Bc5 {[%emt 0:00:01]} Re8 {[%emt 0:00:07]} 15. O-O {[%emt 0:01:15]} Qh4 {[%emt 0:02:20]} 16. Bf3 {[%emt 0:01:15]} Red8 {[%emt 0:01:59]} 17. g3 {[%emt 0:00:14]} Qf6 {[%emt 0:00:29]} 18. Bg2 {[%emt 0:01:05]} a5 {[%emt 0:00:31]} 19. Rad1 {[%emt 0:00:56]} Bc6 {[%emt 0:01:44]} 20. Be3 {[%emt 0:00:37]} Qe6 {[%emt 0:00:13]} 21. Rfe1 {[%emt 0:01:03]} a4 {[%emt 0:00:45]} 22. Bb6 {[%emt 0:00:34]} Rd7 {[%emt 0:00:13]} 23. Qe2 {[%emt 0:00:33]} Rb8 {[%emt 0:00:38]} 24. Be3 {[%emt 0:00:31]} Bb5 {[%emt 0:00:36]} 25. Qc2 {[%emt 0:00:09]} Qc6 {[%emt 0:01:48]} 26. Rd2 {[%emt 0:00:12]} Bc4 {[%emt 0:00:06]} 27. a3 {[%emt 0:00:10]} Rdb7 {[%emt 0:00:47]} 28. Qc1 {[%emt 0:00:06]} Rb5 {[%emt 0:00:21]} 29. Red1 {[%emt 0:00:09]} Qb7 {[%emt 0:00:19]} 30. Qa1 {[%emt 0:00:17]} e4 {[%emt 0:00:48]} 31. Bd4 {[%emt 0:00:10]} Bd3 {[%emt 0:01:08]} 32. Bxg7 Kxg7 {[%emt 0:00:02]} 33. Bf1 {[%emt 0:00:19]} Bxf1 {[%emt 0:00:38]} 34. Kxf1 {[%emt 0:00:06]} e3 {[%emt 0:00:18]} 35. fxe3 {[%emt 0:00:11]} d4 {[%emt 0:00:02]} 36. cxd4 {[%emt 0:00:15]} Qh1+ {[%emt 0:00:08]} 37. Ke2 {[%emt 0:00:02]} Qxh2+ {[%emt 0:00:10]} 38. Kf3 {[%emt 0:00:03]} Rf5+ {[%emt 0:00:19]} 39. Ke4 {[%emt 0:00:01]} Qxg3 {[%emt 0:00:08]} 40. b4 {[%emt 0:00:31]} Re8+ {[%emt 0:00:10]} 41. Kd3 {[%emt 0:00:01]} Qxe3+ {[%emt 0:00:06]} 42. Kc2 {[%emt 0:00:01]} Qb3+ {[%emt 0:00:02]} 0-1